bitfinex-derivatives/quotes_ETHF0:USTF0_20250430
["timestamp","ask_amount","ask_price","bid_price","bid_amount"]
[1746017227043,3.2078,1771.1,1770.9,40.8]
[1746017227248,1.12901,1771.1,1771.0,12.51980486]
[1746017227447,1.12901,1771.1,1771.0,17.26760486]
[1746017228249,1.12892,1771.2,1771.0,23.39661486]
[1746017228442,5.64266,1771.8,1771.3,12.51980486]
[1746017228443,3.2078,1771.6,1771.3,12.51980486]
[1746017228643,4.33648,1771.6,1771.5,11.67300486]
[1746017228842,4.33644,1771.6,1771.5,11.67300486]
[1746017229045,4.33644,1771.6,1771.5,9.74810486]
[1746017229240,0.4925,1771.7,1771.5,14.33290486]
[1746017229443,1.61767,1771.7,1771.6,9.74810486]
[1746017229644,7.10370204,1772.9,1771.8,1.12851]
[1746017229844,0.46735216,1772.6,1772.1,2.8208]
[1746017230052,10.31150204,1772.9,1772.6,9.74810486]
[1746017230344,3.2078,1772.7,1772.2,10.0252]
[1746017230554,3.2078,1772.5,1772.3,9.74810486]
[1746017230746,3.2078,1772.5,1772.2,11.15342]
[1746017230747,8.82615998,1772.4,1772.2,11.15342]
[1746017230946,8.82615998,1772.4,1772.3,10.87629486]
[1746017231343,8.82615998,1772.4,1772.3,9.74810486]
[1746017231749,8.82615998,1772.4,1772.3,10.87629486]
[1746017231952,16.64054937,1773.3,1772.7,1.12788]
[1746017232145,1.12784,1772.9,1772.8,9.74810486]
[1746017232342,3.2078,1773.1,1773.0,9.74810486]
[1746017232654,3.2078,1773.1,1772.6,5.052]
[1746017232655,1.12762,1773.2,1773.1,9.74810486]
[1746017232951,3.67579945,1773.2,1773.0,9.74810486]
[1746017233151,1.12768,1773.1,1773.0,9.74810486]
[1746017233355,1.12775,1773.0,1772.8,1.12787]
[1746017233550,1.59571945,1773.1,1773.0,9.74810486]
[1746017233949,1.12772,1773.1,1773.0,9.74810486]
[1746017234857,7.54745,1773.5,1773.0,9.74810486]
[1746017234858,1.4409,1773.6,1773.2,1.12761]
[1746017235150,2.56826,1773.6,1773.5,9.74810486]
[1746017235347,1.12753,1773.4,1773.3,9.74810486]
[1746017235554,1.12753,1773.4,1773.2,5.051]
[1746017235753,1.12753,1773.4,1773.3,9.74810486]
[1746017235949,3.2078,1773.7,1773.4,1.12749]
[1746017236142,5.33788469,1773.8,1773.7,1.1273]
[1746017236341,5.33788469,1773.8,1773.7,15.92640486]
[1746017236551,5.33788469,1773.8,1773.7,66.28570486]
[1746017237151,6.46512469,1773.8,1773.7,60.15840486]
[1746017237352,5.33788469,1773.8,1773.7,61.28570486]
[1746017237554,5.33788469,1773.8,1773.7,66.28570486]
[1746017238055,5.33788469,1773.8,1773.7,71.21600486]
[1746017238756,1.4366,1773.9,1773.8,1.12724]
[1746017238949,1.4366,1773.9,1773.8,14.08314486]
[1746017239249,1.4366,1773.9,1773.8,15.87534486]
[1746017239456,1.4366,1773.9,1773.8,19.08314486]
[1746017239658,1.4366,1773.9,1773.8,24.05914486]
[1746017240254,1.4366,1773.9,1773.8,19.08314486]
[1746017240456,1.4366,1773.9,1773.8,24.05814486]
[1746017241751,2.81731,1774.3,1773.9,1.12714]
[1746017241953,1.12692,1774.3,1774.2,9.74810486]
[1746017242154,6.02478,1774.6,1774.2,10.87506486]
[1746017242356,4.33453,1774.6,1774.5,9.74810486]
[1746017242657,1.12679,1774.5,1774.4,9.74810486]
[1746017242847,1.12698,1774.2,1774.1,5.97563]
[1746017243259,1.12698,1774.2,1774.1,15.72373486]
[1746017243759,1.12688,1774.4,1774.3,1.12688]
[1746017244060,1.12688,1774.4,1774.3,4.973]
[1746017244256,1.12688,1774.4,1774.3,15.84802486]
[1746017244457,6.02431,1774.9,1774.5,1.12674]
[1746017244656,3.2078,1774.9,1774.7,9.74810486]
[1746017244860,1.12666,1774.7,1774.6,9.74810486]
[1746017245052,3.2078,1774.7,1773.8,1.1272]
[1746017245247,1.12698,1774.2,1774.1,14.51020486]
[1746017245448,1.12698,1774.2,1774.1,4.7621]
[1746017245654,7.7599,1774.6,1774.1,9.74810486]
[1746017245956,1.1267,1774.7,1774.5,9.74810486]
[1746017246159,1.4355,1774.8,1774.7,1.12666]
[1746017246359,1.4355,1774.8,1774.7,10.87476486]
[1746017246562,1.4355,1774.8,1774.7,15.85156486]
[1746017246858,2.5621,1774.8,1774.7,56.65156486]
[1746017247060,2.5621,1774.8,1774.7,55.52490486]
[1746017247259,5.7699,1774.8,1774.7,14.72490486]
[1746017247455,4.3344,1774.8,1774.7,4.9768]
[1746017248060,4.3344,1774.8,1774.6,40.8]
[1746017248061,1.12666,1774.7,1774.6,40.8]
[1746017248262,1.12673,1774.6,1774.5,4.9768]
[1746017248461,4.33453,1774.6,1774.5,4.9768]
[1746017248648,4.33453,1774.6,1774.5,14.72490486]
[1746017248958,4.33453,1774.6,1774.5,4.9768]
[1746017249160,1.12679,1774.5,1774.4,4.973]
[1746017249459,5.80909,1774.5,1774.4,4.973]
[1746017249859,1.12679,1774.5,1774.4,14.72110486]
[1746017250056,1.12679,1774.5,1774.4,9.9688]
[1746017250360,1.12685,1774.4,1774.3,41.9269]
[1746017250557,1.12685,1774.4,1774.3,40.8]
[1746017250853,2.817,1774.5,1774.0,4.972]
[1746017251061,1.12697,1774.3,1774.2,9.74810486]
[1746017251261,1.12679,1774.5,1774.4,9.74810486]
[1746017251462,2.56203,1774.6,1774.5,9.74810486]
[1746017251854,2.56203,1774.6,1774.5,14.74390486]
[1746017252054,1.12673,1774.6,1774.5,19.71590486]
[1746017252457,2.81721,1774.4,1774.0,4.972]
[1746017252664,1.12692,1774.3,1774.2,9.74810486]
[1746017253162,1.12698,1774.2,1774.1,4.8438]
[1746017253364,1.12711,1774.0,1773.9,4.972]
[1746017253562,1.1271,1774.1,1774.0,9.74810486]
[1746017253863,1.1271,1774.1,1774.0,14.59190486]
[1746017254559,1.12738,1773.6,1773.3,3.2078]
[1746017254756,1.1273,1773.7,1773.6,9.74810486]
[1746017254963,3.2078,1773.9,1773.7,9.74810486]
[1746017255160,1.12731,1773.7,1773.5,1.12738]
[1746017255362,1.12728,1773.8,1773.7,9.74810486]
[1746017255563,1.12738,1773.6,1773.4,1.12747]
[1746017255766,1.12735,1773.7,1773.6,9.74810486]
[1746017256166,8.2078,1773.7,1772.9,7.8516]
[1746017256464,1.12781,1772.9,1772.8,4.972]
[1746017256767,1.12768,1773.1,1773.0,9.74810486]
[1746017257163,1.12774,1773.0,1772.9,4.8669]
[1746017257564,5.87973,1773.1,1772.9,14.61500486]
[1746017257759,4.752,1773.1,1773.0,9.74810486]
[1746017257965,5.87968,1773.1,1773.0,14.61500486]
[1746017258166,3.2078,1773.4,1773.0,4.8669]
[1746017258357,1.12755,1773.3,1773.2,9.74810486]
[1746017258562,1.12755,1773.3,1773.2,14.54530486]
[1746017258869,1.12739,1773.6,1773.4,1.12747]
[1746017259068,3.2078,1773.7,1773.5,14.54530486]
[1746017259264,2.81783,1774.0,1773.6,14.72110486]
[1746017259265,4.33492,1774.0,1773.6,14.72110486]
[1746017259459,1.4354,1774.2,1773.9,10.87527486]
[1746017259663,1.4354,1774.2,1774.1,9.74810486]
[1746017259868,1.90343249,1774.2,1774.1,10.87515486]
[1746017260173,0.46803249,1774.2,1774.1,9.74810486]
[1746017260372,0.46803249,1774.2,1774.1,10.87515486]
[1746017260573,1.59501249,1774.2,1774.1,9.74810486]
[1746017261875,1.59501249,1774.2,1773.6,2.81836]
[1746017261876,2.81762,1774.1,1773.2,6.02685]
[1746017262064,1.12717,1773.9,1773.8,14.41030486]
[1746017262263,1.12717,1773.9,1773.8,4.6622]
[1746017262476,1.12755,1773.3,1773.2,3.2078]
[1746017262666,1.12752,1773.4,1773.2,10.87566486]
[1746017262878,1.12752,1773.4,1773.3,9.74810486]
[1746017263174,1.59556249,1773.4,1773.3,9.74810486]
[1746017263673,1.12755,1773.3,1773.2,4.6622]
[1746017263972,1.59558249,1773.3,1773.2,4.6622]
[1746017264169,1.59558249,1773.3,1773.2,14.41030486]
[1746017264476,2.81925,1773.1,1772.6,1.12796]
[1746017264774,1.12789,1772.8,1772.7,4.973]
[1746017264975,1.59592249,1772.8,1772.7,10.5713]
[1746017265271,1.59592249,1772.8,1772.7,20.31940486]
[1746017265471,0.46803249,1772.8,1772.7,21.44734486]
[1746017265872,1.59590249,1772.8,1772.7,20.31940486]
[1746017266165,0.46803249,1772.8,1772.7,16.47434486]
[1746017266772,1.59590249,1772.8,1772.7,16.47434486]
[1746017267068,1.59590249,1772.8,1772.6,4.973]
[1746017267069,1.12794,1772.7,1772.6,4.973]
[1746017267273,1.128,1772.6,1772.5,5.7316]
[1746017267473,1.59603249,1772.6,1772.5,5.7316]
[1746017267777,7.17163249,1772.6,1772.5,5.7316]
[1746017268071,1.5960345,1772.6,1772.5,9.74810486]
[1746017268269,0.4680045,1772.6,1772.5,20.85016486]
[1746017268465,1.12776,1773.0,1772.6,2.81995]
[1746017268667,3.2078,1773.1,1773.0,1.12774]
[1746017268970,1.12768,1773.1,1773.0,10.87584486]
[1746017269371,1.12768,1773.1,1773.0,9.74810486]
[1746017269571,1.12781,1772.9,1772.8,5.7316]
[1746017269775,6.4953152,1772.9,1772.4,9.8853]
[1746017269976,1.128,1772.6,1772.5,15.47970486]
[1746017270171,1.128,1772.6,1772.5,5.7316]
[1746017270366,7.1244952,1772.6,1772.5,5.7316]
[1746017271072,1.5958952,1772.6,1772.5,5.7316]
[1746017271465,1.128,1772.6,1772.5,5.7316]
[1746017271664,6.6566,1772.6,1772.5,5.7316]
[1746017272472,7.12377327,1772.6,1772.5,5.7316]
[1746017273468,1.59517327,1772.6,1772.5,5.7316]
[1746017273962,0.46717327,1772.6,1772.5,16.60776486]
[1746017274675,1.128,1772.6,1772.5,15.47970486]
[1746017274976,1.12798,1772.7,1772.5,16.60773486]
[1746017275175,1.12794,1772.7,1772.6,1.128]
[1746017275375,1.1279,1772.8,1772.6,9.74810486]
[1746017275674,1.12786,1772.9,1772.8,9.74810486]
[1746017276469,1.12787,1772.8,1772.7,5.5902]
[1746017276669,6.49647,1772.8,1772.7,5.5902]
[1746017277070,1.12787,1772.8,1772.7,5.5902]
[1746017277270,1.12787,1772.8,1772.7,15.33830486]
[1746017277669,3.2078,1772.9,1772.7,16.46624486]
[1746017277866,4.33566,1772.9,1772.8,9.74810486]
[1746017278472,1.12787,1772.8,1772.7,5.5902]
[1746017278672,1.12787,1772.8,1772.7,15.33830486]
[1746017278873,1.12787,1772.8,1772.7,16.46624486]
[1746017279180,1.12787,1772.8,1772.7,15.33830486]
[1746017279570,1.12787,1772.8,1772.7,5.5902]
[1746017279771,6.65847,1772.8,1772.7,5.5902]
[1746017282580,4.33675,1771.1,1771.0,7.47282744]
[1746017283078,13.63234143,1771.1,1771.0,7.47282744]
[1746017283270,12.95166493,1771.1,1770.8,12.51301736]
[1746017283471,12.95166493,1771.1,1770.5,0.29634285]
[1746017283472,1.12587,1770.6,1770.5,2.85e-06]
[1746017283677,1.12934,1770.5,1770.4,4.051186]
[1746017283875,7.06195299,1770.5,1770.4,2.827616]
[1746017284071,11.61364,1770.5,1770.4,2.827616]
[1746017284383,15.90923143,1770.5,1770.4,2.827616]
[1746017284881,10.42493143,1770.5,1770.4,6e-06]
[1746017285177,15.90923143,1770.5,1770.4,6e-06]
[1746017285985,10.90923143,1770.5,1770.4,6e-06]
[1746017286179,0.46759143,1770.5,1770.4,9.74811086]
[1746017286382,5.40677333,1772.1,1770.4,9.74811086]
[1746017286383,3.2078,1771.1,1770.6,9.74810486]
[1746017286678,4.33676,1771.1,1770.8,9.74810486]
[1746017286872,1.12904,1771.0,1770.7,5.7857]
[1746017287077,4.33688,1770.9,1770.7,15.53380486]
[1746017287274,1.12934,1770.5,1770.4,6e-06]
[1746017287580,1.12932,1770.6,1770.4,9.74811086]
[1746017287879,4.33676,1771.1,1771.0,9.74810486]
[1746017288082,1.12902,1771.0,1770.9,9.74810486]
[1746017288278,1.12908,1770.9,1770.8,5.7857]
[1746017288479,1.12908,1770.9,1770.8,15.53380486]
[1746017288678,1.12908,1770.9,1770.8,5.7857]
[1746017289277,1.12934,1770.5,1770.4,6e-06]
[1746017289481,8.0768,1770.5,1769.8,5.6543]
[1746017289674,3.2078,1770.1,1769.4,3.2078]
[1746017289874,1.12987,1769.7,1769.5,15.40240486]
[1746017290187,1.1299,1769.7,1769.5,5.6543]
[1746017290384,1.12991,1769.6,1769.5,9.74810486]
[1746017290585,1.12994,1769.6,1769.3,5.6543]
[1746017290883,1.12991,1769.6,1769.5,9.74810486]
[1746017291084,4.33771,1769.7,1769.5,9.74810486]
[1746017291281,3.2044,1769.7,1769.5,9.74810486]
[1746017291479,3.2078,1769.7,1769.6,5.56691]
[1746017291778,3.2078,1769.9,1769.8,1.12978]
[1746017291978,9.0029,1770.3,1770.2,1.12953]
[1746017292184,3.2078,1770.8,1770.4,9.74810486]
[1746017292376,3.2078,1770.8,1770.0,3.2078]
[1746017292377,9.0029,1770.8,1770.0,3.2078]
[1746017292578,9.0029,1770.8,1770.4,12.95590486]
[1746017292579,8.9995,1770.8,1770.4,12.95590486]
[1746017292781,5.7917,1770.8,1770.6,9.74810486]
[1746017292988,5.7917,1770.8,1770.3,5.5453]
[1746017292989,1.12899,1771.1,1770.7,9.74810486]
[1746017293181,1.12885,1771.3,1771.0,10.87710486]
[1746017293389,1.12885,1771.3,1770.9,9.74810486]
[1746017293390,1.12902,1771.0,1770.9,9.74810486]
[1746017293583,3.2078,1771.4,1771.0,9.74810486]
[1746017293889,1.12884,1771.3,1771.2,9.74810486]
[1746017294186,1.12549,1771.2,1771.1,5.5453]
[1746017294376,1.12921,1770.7,1770.5,4.871]
[1746017294580,1.1293,1770.6,1770.4,40.8]
[1746017294775,10.90103,1771.2,1770.5,9.74810486]
[1746017294978,1.12904,1771.0,1770.7,9.74810486]
[1746017295179,8.0788,1771.4,1771.0,9.74810486]
[1746017295387,1.12886,1771.3,1771.0,9.74810486]
[1746017295579,3.54151226,1771.5,1771.1,15.43720486]
[1746017295775,3.54151226,1771.5,1771.3,9.74810486]
[1746017295978,3.54151226,1771.5,1771.4,9.74810486]
[1746017296183,3.54151226,1771.5,1771.4,16.56596486]
[1746017296384,3.53811226,1771.5,1771.4,16.56596486]
[1746017296777,2.82530369,1771.5,1771.4,21.56596486]
[1746017297590,2.82530369,1771.5,1771.4,57.36596486]
[1746017297591,2.82190369,1771.5,1771.4,57.36596486]
[1746017297776,8.76459,1772.0,1771.4,56.23720486]
[1746017298088,1.12849,1771.9,1771.8,9.74810486]
[1746017298295,4.871,1772.3,1771.9,9.74810486]
[1746017298480,1.12831,1772.2,1772.1,9.74810486]
[1746017298680,1.12829,1772.2,1772.0,5.9608]
[1746017298881,1.12825,1772.2,1772.1,9.74810486]
[1746017299089,1.12824,1772.3,1772.1,9.74810486]
[1746017299289,3.2078,1772.9,1772.4,9.74810486]
[1746017299480,2.82005,1772.6,1772.2,15.70890486]
[1746017299680,1.12819,1772.3,1772.2,5.9608]
[1746017300181,5.0,1772.3,1771.7,5.1076]
[1746017300398,1.12857,1771.7,1771.6,0.0034]
[1746017300784,1.5913835,1771.7,1771.6,0.0034]
[1746017300983,6.5913835,1771.7,1771.6,0.0034]
[1746017301186,10.4193835,1771.7,1771.6,0.0034]
[1746017301387,1.12889,1771.2,1771.1,5.7395]
[1746017301687,2.82161,1771.6,1771.3,9.74810486]
[1746017301890,1.12876,1771.4,1771.3,9.74810486]
[1746017302188,1.12889,1771.2,1771.1,5.7395]
[1746017302386,3.8246,1771.6,1771.3,9.74810486]
[1746017302593,3.8246,1771.6,1771.0,8.0778]
[1746017302789,1.12883,1771.3,1771.2,9.74810486]
[1746017302991,1.1288,1771.4,1771.3,9.74810486]
[1746017303289,8.0778,1772.1,1771.4,9.74810486]
[1746017303488,1.12851,1771.8,1771.7,9.74810486]
[1746017303689,0.46332429,1772.0,1771.7,6.70623]
[1746017303888,1.59170429,1772.0,1771.9,9.74810486]
[1746017304194,1.12851,1771.8,1771.7,15.32580486]
[1746017304492,1.59183429,1771.8,1771.7,15.32580486]
[1746017304995,0.46332429,1771.8,1771.7,21.45437486]
[1746017305295,1.12851,1771.8,1771.7,5.5777]
[1746017305597,1.12857,1771.7,1771.6,0.0034]
[1746017305890,1.12857,1771.7,1771.6,2.55737906]
[1746017306094,1.59189429,1771.7,1771.6,0.0034]
[1746017306587,0.46332429,1771.7,1771.6,7.55737906]
[1746017306788,0.46332429,1771.7,1771.6,11.89381906]
[1746017306992,0.46332429,1771.7,1771.6,16.26617906]
[1746017307295,1.12857,1771.7,1771.6,11.26617906]
[1746017307486,1.12883,1771.3,1771.2,3.2078]
[1746017307683,1.12889,1771.2,1771.1,8.05497906]
[1746017307896,1.12908,1770.9,1770.8,9.8057]
[1746017308086,1.12908,1770.9,1770.8,4.9357]
[1746017308289,1.12906,1771.0,1770.8,8.61882906]
[1746017308492,1.12564,1771.0,1770.9,2.55397906]
[1746017308688,1.59055645,1771.0,1770.9,2.55397906]
[1746017308889,1.12915,1770.8,1770.7,3.2078]
[1746017309095,1.12913,1770.9,1770.7,4.337]
[1746017309290,1.12902,1771.0,1770.9,2.55397906]
[1746017309691,1.12893,1771.2,1771.0,1.129]
[1746017309887,1.12893,1771.2,1771.1,2.55397906]
[1746017310601,1.12908,1770.9,1770.8,3.2078]
[1746017310898,1.12568,1770.9,1770.8,5.76177906]
[1746017311400,2.55858,1770.9,1770.8,5.76177906]
[1746017311904,2.55858,1770.9,1770.8,3.2078]
[1746017312198,1.1294,1770.4,1770.3,12.9755]
[1746017312396,5.64702,1770.4,1769.8,14.7107]
[1746017312592,1.12972,1769.9,1769.8,9.8397]
[1746017312787,2.82401,1770.1,1769.5,3.2078]
[1746017312988,1.13017,1769.2,1769.1,3.2078]
[1746017313395,2.82513,1769.4,1769.1,3.2078]
[1746017313396,2.82502,1769.5,1769.1,4.47151906]
[1746017313594,1.13015,1769.3,1769.2,6.98301906]
[1746017314000,1.13006,1769.4,1769.2,6.98301906]
[1746017314300,2.82445,1769.9,1769.2,6.98301906]
[1746017314301,2.82431,1769.9,1769.3,4.47151906]
[1746017314494,1.12998,1769.5,1769.4,6.98301906]
[1746017314895,1.12998,1769.5,1769.4,5.7193]
[1746017315996,2.82466,1769.7,1769.3,0.0034]
[1746017316200,5.9255,1769.6,1769.3,0.0034]
[1746017316407,1.13029,1769.0,1768.9,3.2078]
[1746017317304,3.828,1769.0,1768.9,10.60187906]
[1746017317507,3.828,1769.0,1768.9,16.10297906]
[1746017317700,3.828,1769.0,1768.9,20.97597906]
[1746017318200,3.2078,1769.9,1769.6,1.12985]
[1746017318391,1.12967,1770.0,1769.9,1.26371906]
[1746017318594,6.0315,1770.3,1769.7,6.63092]
[1746017318595,1.12978,1769.8,1769.7,6.76481906]
[1746017318795,1.12978,1769.8,1769.7,5.5011]
[1746017318996,1.13014,1769.3,1769.1,4.33801]
[1746017319191,1.13014,1769.3,1769.2,5.94]
[1746017319395,1.13014,1769.3,1769.2,7.20371906]
[1746017319806,9.0707,1769.7,1769.2,7.20371906]
[1746017320008,4.33765,1769.7,1769.6,1.26371906]
[1746017320400,1.12991,1769.6,1769.5,5.94]
[1746017320707,1.1301,1769.3,1769.2,1.26371906]
[1746017321100,8.68788,1769.5,1769.0,5.0859]
[1746017321101,1.13023,1769.1,1769.0,5.0859]
[1746017321404,1.13036,1768.9,1768.8,90.69145758]
[1746017321603,1.13036,1768.9,1768.8,87.48365758]
[1746017322400,1.13015,1769.3,1768.8,88.74737664]
[1746017322700,1.13027,1769.1,1768.9,5.6828]
[1746017322915,1.13017,1769.2,1769.1,1.26371906]
[1746017323100,2.82542,1769.2,1768.8,87.48365758]
[1746017323299,1.13034,1769.0,1768.8,87.48365758]
[1746017323501,5.4361,1768.9,1768.8,87.48365758]
[1746017323702,1.13036,1769.0,1768.9,1.26371906]
[1746017324002,1.13036,1769.0,1768.9,5.6828]
[1746017324207,5.4361,1769.2,1768.9,6.94651906]
[1746017324504,1.13027,1769.1,1769.0,1.26371906]
[1746017324707,1.13015,1769.3,1769.1,1.26371906]
[1746017324908,1.13036,1768.9,1768.8,87.48365758]
[1746017325109,1.13023,1769.1,1769.0,1.26371906]
[1746017325304,1.13029,1769.0,1768.9,5.9206]
[1746017325614,1.13036,1768.9,1768.8,87.48365758]
[1746017325909,2.82563,1769.1,1768.8,88.74737664]
[1746017326109,1.13036,1768.9,1768.8,74.25408006]
[1746017326310,1.13036,1768.9,1768.3,0.02503]
[1746017326311,1.13068,1768.4,1768.3,0.02503]
[1746017326508,4.33848,1768.4,1768.3,0.02503]
[1746017326710,1.13068,1768.4,1768.3,5.94563]
[1746017327015,1.13068,1768.4,1768.3,0.02503]
[1746017327016,6.13068,1768.4,1768.3,0.02503]
[1746017327210,9.95868,1768.4,1768.3,0.30770752]
[1746017327708,11.39168,1768.4,1768.3,0.02503]
[1746017327905,6.39168,1768.4,1768.3,24.18332658]
[1746017328112,1.433,1768.4,1768.3,24.18332658]
[1746017328418,2.56368,1768.4,1768.3,11.61350752]
[1746017328709,1.433,1768.4,1768.3,25.31406658]
[1746017328915,1.433,1768.4,1768.3,33.52186658]
[1746017329310,1.433,1768.4,1768.3,24.18332658]
[1746017329505,1.433,1768.4,1768.3,33.52186658]
[1746017329711,1.433,1768.4,1768.3,24.18332658]
[1746017329912,1.433,1768.4,1768.3,28.52186658]
[1746017330423,2.56368,1768.4,1768.3,0.30770752]
[1746017330618,2.56368,1768.4,1768.3,24.18332658]
[1746017330910,1.433,1768.4,1768.3,33.52186658]
[1746017331214,2.56368,1768.4,1768.3,32.37112658]
[1746017331609,4.98,1769.2,1768.3,32.37112658]
[1746017331610,3.2078,1769.4,1769.0,0.28267752]
[1746017331805,3.2078,1770.1,1769.3,27.36609658]
[1746017332006,3.2078,1770.1,1769.7,0.28267752]
[1746017332007,2.82415,1770.0,1769.7,0.28267752]
[1746017332202,3.0082,1770.2,1769.9,12.85249658]
[1746017332403,5.33788469,1770.5,1770.1,24.15829658]
[1746017332616,5.33788469,1770.5,1770.4,25.28769658]
[1746017333110,3.0082,1771.1,1770.4,25.28769658]
[1746017333111,7.8023,1771.2,1770.5,0.28267752]
[1746017333307,2.82271,1770.9,1770.6,5.54580752]
[1746017333614,2.82271,1770.9,1770.6,5.5458]
[1746017333615,1.12921,1770.7,1770.6,5.5458]
[1746017333816,1.12921,1770.7,1770.6,29.42141906]
[1746017334017,1.12921,1770.7,1770.6,5.5458]
[1746017334213,9.95721,1770.7,1770.6,5.5458]
[1746017334716,4.95721,1770.7,1770.6,29.42141906]
[1746017334916,3.828,1770.7,1770.6,33.75848906]
[1746017335215,1.12912,1770.9,1770.6,33.75848906]
[1746017335417,1.12912,1770.9,1770.8,23.87561906]
[1746017336209,1.12907,1771.0,1770.8,23.87561906]
[1746017336412,2.82233,1771.2,1771.0,23.87561906]
[1746017336413,1.12895,1771.1,1771.0,23.87561906]
[1746017336609,1.12902,1771.0,1770.9,5.7398]
[1746017336810,1.12915,1770.8,1770.7,3.2078]
[1746017337013,1.12915,1770.8,1770.7,1.98757]
[1746017337510,1.12915,1770.8,1770.7,25.86318906]
[1746017337710,1.58038577,1770.8,1770.7,25.86318906]
[1746017338114,5.40838577,1770.8,1770.7,25.86318906]
[1746017338604,4.95715,1770.8,1770.7,25.86318906]
[1746017338809,3.828,1770.8,1770.7,25.86318906]
[1746017339208,3.2078,1771.1,1770.7,25.86318906]
[1746017339416,1.12915,1770.8,1770.7,1.98757]
[1746017339620,1.12902,1771.0,1770.9,23.87561906]
[1746017339803,1.12902,1771.0,1770.7,1.98757]
[1746017340007,2.82172,1771.6,1770.9,27.08341906]
[1746017340207,5.81481,1771.8,1771.5,23.87561906]
[1746017340414,1.12864,1771.6,1771.5,11.3058]
[1746017340612,1.12857,1771.7,1771.6,23.87561906]
[1746017340814,1.12876,1771.4,1771.3,44.0078]
[1746017341009,1.12875,1771.5,1771.3,44.0078]
[1746017341207,10.79157,1771.9,1771.6,23.87561906]
[1746017341421,1.12857,1771.7,1771.6,23.87561906]
[1746017341611,1.12857,1771.7,1771.6,11.3058]
[1746017341808,1.12857,1771.7,1771.6,23.87561906]
[1746017342008,1.12857,1771.7,1771.6,12.56981906]
[1746017342209,1.12857,1771.7,1771.6,23.87561906]
[1746017342910,1.12895,1771.1,1771.0,5.2078]
[1746017343212,1.12857,1771.7,1771.6,23.87561906]
[1746017343413,6.02857,1772.2,1771.6,28.87561906]
[1746017343619,2.82027,1772.5,1772.1,23.87561906]
[1746017343820,1.12821,1772.3,1772.1,8.1838]
[1746017344316,9.83955358,1772.6,1772.2,23.87561906]
[1746017344511,1.12825,1772.2,1772.1,8.1838]
[1746017344921,1.1287,1771.5,1771.4,44.0078]
[1746017345113,1.1287,1771.5,1771.4,40.8]
[1746017345314,1.1287,1771.5,1771.4,64.67561906]
[1746017345508,1.1287,1771.5,1771.4,23.87561906]
[1746017346223,1.12889,1771.2,1771.1,5.2536]
[1746017346416,5.6436,1771.5,1771.2,22.71143906]
[1746017346621,1.12908,1770.9,1770.5,3.2078]
[1746017346924,1.12908,1770.9,1770.8,26.58174906]
[1746017347117,1.12901,1771.1,1770.8,32.71087906]
[1746017347319,1.12901,1771.1,1770.8,6.32271]
[1746017347620,2.82195,1771.4,1771.0,21.38814906]
[1746017347823,1.12908,1770.9,1770.8,5.1936]
[1746017348014,3.2078,1771.2,1770.7,4.974]
[1746017348323,1.12934,1770.5,1770.4,51.0276]
[1746017348515,1.12934,1770.5,1770.4,60.67506]
[1746017348715,1.12934,1770.5,1770.4,75.75740906]
[1746017348916,1.12934,1770.5,1770.4,29.95740906]
[1746017349117,1.12934,1770.5,1770.4,24.98340906]
[1746017350220,1.12934,1770.5,1770.4,19.72980906]
[1746017351221,1.12946,1770.3,1770.2,4.974]
[1746017351422,4.3372,1770.4,1770.3,9.64746]
[1746017351625,1.1294,1770.4,1770.3,9.64746]
[1746017351823,1.1294,1770.4,1770.3,18.45510906]
[1746017352024,1.12959,1770.1,1770.0,9.9796]
[1746017352221,1.12959,1770.1,1770.0,18.78724906]
[1746017352425,1.12959,1770.1,1770.0,69.23470906]
[1746017352622,1.12959,1770.1,1770.0,74.23470906]
[1746017352826,1.12935,1770.5,1770.3,1.12945]
[1746017353024,1.12933,1770.6,1770.5,18.45510906]
[1746017353420,2.82278,1770.9,1770.5,23.45510906]
[1746017353620,3.2078,1771.0,1770.8,18.45510906]
[1746017353826,1.12896,1771.1,1770.9,23.94630906]
[1746017354025,10.22733358,1771.9,1771.5,8.80764906]
[1746017354230,8.14797358,1771.9,1771.8,18.45510906]
[1746017354429,7.01953358,1771.9,1771.8,18.45510906]
[1746017354623,5.26038167,1772.0,1771.9,19.58354906]
[1746017354825,1.12827,1772.2,1771.9,25.07474906]
[1746017355134,4.95638,1772.0,1771.9,14.29884906]
[1746017355733,4.95638,1772.0,1771.6,4.975]
[1746017355935,2.82132,1771.8,1771.7,8.80764906]
[1746017356139,1.12851,1771.8,1771.7,18.45510906]
[1746017357036,1.12847,1771.9,1771.7,18.45510906]
[1746017357233,5.8301,1772.3,1772.2,8.80764906]
[1746017357434,10.16609,1772.3,1772.2,8.80764906]
[1746017357635,1.12844,1771.9,1771.8,4.974]
[1746017357831,1.12843,1772.0,1771.8,4.974]
[1746017358032,5.8301,1772.3,1771.8,4.974]
[1746017358033,1.12819,1772.3,1772.2,18.45510906]
[1746017358335,2.81985,1772.7,1772.2,18.45510906]
[1746017358633,3.2078,1772.5,1772.4,13.09164162]
[1746017358940,4.33586,1772.5,1772.4,13.09164162]
[1746017359136,1.12806,1772.5,1772.4,13.09164162]
[1746017359741,1.12804,1772.6,1772.4,13.09164162]
[1746017359938,9.85539,1772.9,1772.7,3.44418162]
[1746017360134,1.12794,1772.7,1772.6,9.64746]
[1746017360335,0.45348609,1772.8,1772.3,6.10217]
[1746017360549,0.45348609,1772.8,1772.6,13.09164162]
[1746017360851,1.128,1772.6,1772.5,3.44418162]
[1746017361039,1.12806,1772.5,1772.4,5.5457]
[1746017361548,1.12806,1772.5,1772.4,18.63734162]
[1746017361742,1.12825,1772.2,1772.1,5.0872]
[1746017361942,1.12825,1772.2,1771.6,40.8]
[1746017361943,2.82065,1772.2,1771.6,40.8]
[1746017362244,1.1287,1771.5,1771.4,10.0212]
[1746017362642,1.1287,1771.5,1771.4,61.21284162]
[1746017363147,2.82103,1772.0,1771.4,66.21284162]
[1746017363348,1.12869,1771.6,1771.4,45.8872]